Workbook

Sheet ORÇAMENTO
A1: <---- NUMERAR SERVIÇOS PARA CPU | E1: Ministério do Desenvolvimento Regional
E2: Companhia de Desenvolvimento dos Vales do São Francisco e do Parnaíba
E3: 1ª Superintendência Regional
B5: OBRA: | C5: PAVIMENTAÇÃO EM BLOQUETE SEXTAVADOS - RUAS DIVERSAS - NOVORIZONTE / MG | I5: BDI Serviços (%): | L5: ='BDI SERV'!E26 -> 24.12
B6: DATA: | C6: ABRIL/2025 | I6: BDI Diferenciado Serviços (%): | L6: 15
B7: PRAZO DE EXECUÇÃO: 240 DIAS | I7: BDI Fornecimentos (%): | L7: 15
B8: PLANILHA DE ORÇAMENTAÇÃO
B9: ITEM | C9: CÓDIGO | D9: FONTE | E9: DISCRIMINAÇÃO | F9: TIPO | G9: UNID. | H9: QUANT. | I9: VR.UNIT.S/BDI | J9: PR. UNIT.C/BDI | K9: C. TOT.S/BDI | L9: P. TOT.C/BDI
A10: A | B10: 1 | E10: SERVIÇOS PRELIMINARES | K10: =SUM(K11:K15) -> 245224.63 | L10: =SUM(L11:L15) -> 304351.83
A11: 1 | B11: 1.1 | C11: CPU.1 | D11: CODEVASF | E11: MOBILIZAÇÃO E DESMOBILIZAÇÃO | F11: SERV | G11: GL | H11: 1 | I11: =VLOOKUP(A11,'CPU-SERV'!A:K,11,0) -> 13688.04 | J11: =TRUNC(_xlfn.IFS(F11="SERV",I11*(1+$L$5/100),F11="SERV DIF",I11*(1+$L$6/100),F11="FORN",I11*(1+$L$7/100)),2) -> 16989.59 | K11: =TRUNC(H11*I11,2) -> 13688.04 | L11: =TRUNC(H11*J11,2) -> 16989.59
A12: 2 | B12: 1.2 | C12: CPU.2 | D12: CODEVASF | E12: ADMINISTRAÇÃO LOCAL | F12: SERV | G12: GL | H12: 1 | I12: =VLOOKUP(A12,'CPU-SERV'!A:K,11,0) -> 200315.43 | J12: =TRUNC(_xlfn.IFS(F12="SERV",I12*(1+$L$5/100),F12="SERV DIF",I12*(1+$L$6/100),F12="FORN",I12*(1+$L$7/100)),2) -> 248631.51 | K12: =TRUNC(H12*I12,2) -> 200315.43 | L12: =TRUNC(H12*J12,2) -> 248631.51
A13: 3 | B13: 1.3 | C13: CPU.3 | D13: CODEVASF | E13: CANTEIRO DE OBRAS | F13: SERV | G13: GL | H13: 1 | I13: =VLOOKUP(A13,'CPU-SERV'!A:K,11,0) -> 18289.8 | J13: =TRUNC(_xlfn.IFS(F13="SERV",I13*(1+$L$5/100),F13="SERV DIF",I13*(1+$L$6/100),F13="FORN",I13*(1+$L$7/100)),2) -> 22701.29 | K13: 18289.8 | L13: 22701.29
A14: 4 | B14: 1.4 | C14: 103689 | D14: SINAPI | E14: PLACA DE OBRA EM CHAPA DE AÇO GALVANIZADO | F14: SERV | G14: M2 | H14: 8 | I14: =VLOOKUP(A14,'CPU-SERV'!A:K,11,0) -> 351.42 | J14: =TRUNC(_xlfn.IFS(F14="SERV",I14*(1+$L$5/100),F14="SERV DIF",I14*(1+$L$6/100),F14="FORN",I14*(1+$L$7/100)),2) -> 436.18 | K14: 2811.36 | L14: 3489.44
A15: 6 | B15: 1.5 | C15: 78472 | D15: SINAPI | E15: SERVIÇOS TOPOGRÁFICOS PARA PAVIMENTAÇÃO, INCLUSIVE LEVANTAMENTO PLANIALTIMÉTRICO CADASTRAL, GERAÇÃO DE NOTAS DE SERVIÇO, SEÇÕES TRANSVERSAIS E GREIDE, ESTAQUEAMENTO E ACOMPANHAMENTO EXECUTIVO | F15: SERV | G15: M2 | H15: 22000 | I15: =VLOOKUP(A15,'CPU-SERV'!A:K,11,0) -> 0.46 | J15: =TRUNC(_xlfn.IFS(F15="SERV",I15*(1+$L$5/100),F15="SERV DIF",I15*(1+$L$6/100),F15="FORN",I15*(1+$L$7/100)),2) -> 0.57 | K15: 10120 | L15: 12540
A16: B | B16: 2 | E16: TERRAPLANAGEM E PAVIMENTAÇÃO | K16: =SUM(K17:K19) -> 1542615.5 | L16: =SUM(L17:L19) -> 1914569.5
A17: 7 | B17: 2.1 | C17: 5502114 | D17: SICRO | E17: ESCAVAÇÃO, CARGA E TRANSPORTE DE MATERIAL DE 1ª CATEGORIA - DMT 1.000 A 1.200M, CAMINHO DE SERVIÇO EM REVESTIMENTO PRIMÁRIO | F17: SERV | G17: M3 | H17: 3350 | I17: =VLOOKUP(A17,'CPU-SERV'!A:K,11,0) -> 6.73 | J17: =TRUNC(_xlfn.IFS(F17="SERV",I17*(1+$L$5/100),F17="SERV DIF",I17*(1+$L$6/100),F17="FORN",I17*(1+$L$7/100)),2) -> 8.35 | K17: =TRUNC(H17*I17,2) -> 22545.5 | L17: =TRUNC(H17*J17,2) -> 27972.5
A18: 8 | B18: 2.2 | C18: 4011300a | D18: SICRO | E18: REGULARIZAÇÃO, COMPACTAÇÃO E REFORÇO DE SUBLEITO DE SOLO MELHORADO COM 3% DE CIMENTO, MISTURA NA PISTA | F18: SERV | G18: M3 | H18: 3350 | I18: =VLOOKUP(A18,'CPU-SERV'!A:K,11,0) -> 48.2 | J18: =TRUNC(_xlfn.IFS(F18="SERV",I18*(1+$L$5/100),F18="SERV DIF",I18*(1+$L$6/100),F18="FORN",I18*(1+$L$7/100)),2) -> 59.82 | K18: 161470 | L18: 200397
A19: 9 | B19: 2.3 | C19: 92394 | D19: SINAPI | E19: EXECUÇÃO DE PAVIMENTO EM PISO INTERTRAVADO, COM BLOCO SEXTAVADO DE CONCRETO DE 25 X 25 CM, ESPESSURA 8 CM | F19: SERV | G19: M2 | H19: 20000 | I19: =VLOOKUP(A19,'CPU-SERV'!A:K,11,0) -> 67.93 | J19: =TRUNC(_xlfn.IFS(F19="SERV",I19*(1+$L$5/100),F19="SERV DIF",I19*(1+$L$6/100),F19="FORN",I19*(1+$L$7/100)),2) -> 84.31 | K19: 1358600 | L19: 1686200
A20: C | B20: 3 | E20: TRANSPORTE DE MATERIAIS | K20: =SUM(K21:K24) -> 182760 | L20: =SUM(L21:L24) -> 225710
A21: 15 | B21: 3.1 | C21: 5915321 | D21: SICRO | E21: TRANSPORTE COM CAMINHÃO BASCULANTE, EM VIA URBANA PAVIMENTADA | F21: SERV | G21: TXKM | H21: 150000 | I21: =VLOOKUP(A21,'CPU-SERV'!A:K,11,0) -> 0.54 | J21: =TRUNC(_xlfn.IFS(F21="SERV",I21*(1+$L$5/100),F21="SERV DIF",I21*(1+$L$6/100),F21="FORN",I21*(1+$L$7/100)),2) -> 0.67 | K21: =TRUNC(H21*I21,2) -> 81000 | L21: =TRUNC(H21*J21,2) -> 100500
A22: 16 | B22: 3.2 | C22: 5915320 | D22: SICRO | E22: TRANSPORTE COM CAMINHÃO BASCULANTE, EM VIA COM REVESTIMENTO PRIMÁRIO | F22: SERV | G22: TXKM | H22: 13000 | I22: =VLOOKUP(A22,'CPU-SERV'!A:K,11,0) -> 0.72 | J22: =TRUNC(_xlfn.IFS(F22="SERV",I22*(1+$L$5/100),F22="SERV DIF",I22*(1+$L$6/100),F22="FORN",I22*(1+$L$7/100)),2) -> 0.89 | K22: 9360 | L22: 11570
A23: 17 | B23: 3.3 | C23: 5914434 | D23: SICRO | E23: TRANSPORTE COM CAMINHÃO CARROCERIA, EM VIA URBANA PAVIMENTADA | F23: SERV | G23: TXKM | H23: 120000 | I23: =VLOOKUP(A23,'CPU-SERV'!A:K,11,0) -> 0.74 | J23: =TRUNC(_xlfn.IFS(F23="SERV",I23*(1+$L$5/100),F23="SERV DIF",I23*(1+$L$6/100),F23="FORN",I23*(1+$L$7/100)),2) -> 0.91 | K23: 88800 | L23: 109200
A24: 18 | B24: 3.4 | C24: 5914419 | D24: SICRO | E24: TRANSPORTE COM CAMINHÃO CARROCERIA, EM VIA COM REVESTIMENTO PRIMÁRIO | F24: SERV | G24: TXKM | H24: 4000 | I24: =VLOOKUP(A24,'CPU-SERV'!A:K,11,0) -> 0.9 | J24: =TRUNC(_xlfn.IFS(F24="SERV",I24*(1+$L$5/100),F24="SERV DIF",I24*(1+$L$6/100),F24="FORN",I24*(1+$L$7/100)),2) -> 1.11 | K24: 3600 | L24: 4440
A25: D | B25: 4 | E25: DRENAGEM E OBRAS COMPLEMENTARES | K25: =SUM(K26:K29) -> 447317.8 | L25: =SUM(L26:L29) -> 555196.4
A26: 20 | B26: 4.1 | C26: 94267a | D26: SINAPI | E26: GUIA (MEIO-FIO) E SARJETA CONJUGADOS DE CONCRETO, MOLDADA IN LOCO COM EXTRUSORA, 45 CM BASE (15 CM BASE DA GUIA + 30 CM SARJETA) X 22 CM ALTURA | F26: SERV | G26: M | H26: 6600 | I26: =VLOOKUP(A26,'CPU-SERV'!A:K,11,0) -> 57.51 | J26: =TRUNC(_xlfn.IFS(F26="SERV",I26*(1+$L$5/100),F26="SERV DIF",I26*(1+$L$6/100),F26="FORN",I26*(1+$L$7/100)),2) -> 71.38 | K26: =TRUNC(H26*I26,2) -> 379566 | L26: =TRUNC(H26*J26,2) -> 471108
A27: 22 | B27: 4.2 | C27: 94263 | D27: SINAPI | E27: GUIA (MEIO-FIO) CONCRETO, MOLDADA IN LOCO EM TRECHO RETO (PARA TRAVAMENTO), 13 CM BASE X 22 CM ALTURA | F27: SERV | G27: M | H27: 500 | I27: =VLOOKUP(A27,'CPU-SERV'!A:K,11,0) -> 35.81 | J27: =TRUNC(_xlfn.IFS(F27="SERV",I27*(1+$L$5/100),F27="SERV DIF",I27*(1+$L$6/100),F27="FORN",I27*(1+$L$7/100)),2) -> 44.44 | K27: 17905 | L27: 22220
A28: 46 | B28: 4.2 | C28: 5213440+ 5213863a | D28: SICRO | E28: FORNECIMENTO E INSTALAÇÃO DE PLACA DE SINALIZAÇÃO VIÁRIA - REGULAMENTAÇÃO 0,60MX0,60M, SUPORTE INCLUSO | F28: SERV | G28: UNID. | H28: 60 | I28: =VLOOKUP(A28,'CPU-SERV'!A:K,11,0) -> 486.02 | J28: =TRUNC(_xlfn.IFS(F28="SERV",I28*(1+$L$5/100),F28="SERV DIF",I28*(1+$L$6/100),F28="FORN",I28*(1+$L$7/100)),2) -> 603.24 | K28: 29161.2 | L28: 36194.4
A29: 47 | B29: 4.3 | C29: CPU.5 | D29: CODEVASF | E29: FORNECIMENTO E INSTALAÇÃO DE PLACA DE IDENTIFICAÇÃO DE LOGRADOURO, SUPORTE EXISTENTE - CONFORME PROJETO | F29: SERV | G29: UNID. | H29: 120 | I29: =VLOOKUP(A29,'CPU-SERV'!A:K,11,0) -> 172.38 | J29: =TRUNC(_xlfn.IFS(F29="SERV",I29*(1+$L$5/100),F29="SERV DIF",I29*(1+$L$6/100),F29="FORN",I29*(1+$L$7/100)),2) -> 213.95 | K29: 20685.6 | L29: 25674
B30: TOTAL GERAL DA OBRA COM BDI | K30: =SUM(K10,K16,K20,K25) -> 2417917.93 | L30: =SUM(L10,L16,L20,L25) -> 2999827.73

Sheet CPU-SERV
A1: 1 | B1: 1ª/GRD | K1: =J37 -> 13688.04
B2: OBRA: | C2: PAVIMENTAÇÃO EM BLOQUETE SEXTAVADOS - RUAS DIVERSAS - NOVORIZONTE / MG
B3: Custo Unitário de Referência | E3: Minas Gerais | N3: =M3/(ORÇAMENTO!L30) -> 0
E4: Janeiro/2025 | H4: Produção da equipe | I4: 0.5 | J4: =VLOOKUP(A1,ORÇAMENTO!$A$10:$L$57,7,1) -> GL
B5: CPU.1 | C5: MOBILIZAÇÃO E DESMOBILIZAÇÃO | I5: Valores em reais (R$)
B6: A - EQUIPAMENTOS | D6: Quantidade | E6: Utilização | G6: Custo Horário | J6: Custo
E7: Operativa | F7: Improdutiva | G7: Produtivo | H7: Improdutivo | J7: Horário Total
B8: E9687 | C8: Caminhão carroceria com capacidade de 5 t - 115 kW | D8: 8 | E8: 0.6 | F8: 0.4 | G8: 146.8808 | H8: 57.4231 | J8: =D8*(E8*G8+F8*H8) -> 888.78176
B9: E9575 | C9: Caminhão basculante com caçamba estanque com capacidade de 14 m³ - 210 kW | D9: 16 | E9: 1 | F9: 0 | G9: 309.8394 | H9: 90.4122 | J9: =D9*(E9*G9+F9*H9) -> 4957.4304
H10: Custo horário total de equipamentos | J10: =SUM(J8:J9) -> 5846.21216
B11: B - MÃO DE OBRA | D11: Quantidade | E11: Unidade | G11: Custo Horário | H11: Custo Horário Total
B12: P9824 | C12: Servente | D12: 8 | E12: h | G12: 21.3355 | J12: =D12*G12 -> 170.684
B13: - | C13: 0 | E13: 0 | G13: 0 | J13: =D13*G13 -> 0
D14: Custo horário total de mão de obra | J14: =SUM(J12:J13) -> 170.684
D15: Custo horário total de execução | J15: =J10+J14 -> 6016.89616
D16: Custo unitário de execução | J16: =J15/I4 -> 12033.79232
H17: Custo do FIC | J17: 0
H18: Custo do FIT | J18: 0
B19: C - MATERIAL | D19: Quantidade | E19: Unidade | G19: Preço Unitário | H19: Custo Unitário
B20: - | C20: 0 | E20: 0 | G20: 0 | J20: =D20*G20 -> 0
B21: - | C21: 0 | E21: 0 | G21: 0 | J21: =D21*G21 -> 0
D22: Custo unitário total de material | J22: =SUM(J20:J21) -> 0
B23: D - ATIVIDADES AUXILIARES | D23: Quantidade | E23: Unidade | G23: Custo Unitário | H23: Custo Unitário
B24: 5914640 | C24: Transporte com cavalo mecânico com semirreboque com capacidade de 30 t - rodovia pavimentada | D24: 2902.2 | E24: tkm | G24: 0.57 | J24: =D24*G24 -> 1654.254
B25: - | C25: 0 | D25: 0 | E25: 0 | G25: 0 | J25: =D25*G25 -> 0
D26: Custo total de atividades auxiliares | J26: =SUM(J24:J25) -> 1654.254
H27: Subtotal | J27: =J16+J22+J26+J17+J18 -> 13688.04632
B28: E - TEMPO FIXO | D28: Código | E28: Quantidade | F28: Unidade | H28: Custo Unitário | I28: Custo Unitário
B29: - | C29: 0 | D29: - | F29: 0 | H29: 0 | J29: =ROUNDDOWN(E29*H29,4) -> 0
B30: - | C30: 0 | D30: - | F30: 0 | H30: 0 | J30: =ROUNDDOWN(E30*H30,4) -> 0
D31: Custo unitário total de tempo fixo | J31: =SUM(J29:J30) -> 0
B32: F - MOMENTO DE TRANSPORTE | D32: Quantidade | E32: Unidade | F32: DMT | J32: Custo Unitário
F33: LN | G33: RP | H33: P
B34: - | C34: 0 | E34: tkm
B35: - | C35: 0 | E35: tkm
D36: Custo unitário total de transporte
F37: Custo unitário direto total | J37: =TRUNC(J27+J31,2) -> 13688.04
B38: Obs.
A40: =A1+1 -> 2 | B40: 1ª/GRD | K40: =J81 -> 200315.43
B41: OBRA: | C41: PAVIMENTAÇÃO EM BLOQUETE SEXTAVADOS - RUAS DIVERSAS - NOVORIZONTE / MG
B42: Custo Unitário de Referência | E42: Minas Gerais
E43: Janeiro/2025 | H43: Produção da equipe | I43: 0.125 | J43: =VLOOKUP(A40,ORÇAMENTO!$A$10:$L$57,7,1) -> GL
B44: CPU.2 | C44: ADMINISTRAÇÃO LOCAL | I44: Valores em reais (R$)
B45: A - EQUIPAMENTOS | D45: Quantidade | E45: Utilização | G45: Custo Horário | J45: Custo
E46: Operativa | F46: Improdutiva | G46: Produtivo | H46: Improdutivo | J46: Horário Total
B47: - | C47: 0 | G47: 0 | H47: 0 | J47: =D47*(E47*G47+F47*H47) -> 0
B48: - | C48: 0 | G48: 0 | H48: 0 | J48: =D48*(E48*G48+F48*H48) -> 0
H49: Custo horário total de equipamentos | J49: =SUM(J47:J48) -> 0
B50: B - MÃO DE OBRA | D50: Quantidade | E50: Unidade | G50: Custo Horário | H50: Custo Horário Total
B51: P9812 | C51: Engenheiro | D51: 0.1963253711 | E51: mês | G51: 26055.5515 | J51: =D51*G51 -> 5115.365816
B52: P9840 | C52: Encarregado geral | D52: 1 | E52: mês | G52: 11986.48665 | J52: 11986.48665
B53: P9876 | C53: Técnico de segurança do trabalho | D53: 0.5 | E53: mês | G53: 7060.98564 | J53: 3530.49282
B54: P9858 | C54: Laboratorista | D54: 0.5 | E54: mês | G54: 5739.54363 | J54: 2869.771815
B55: P9806 | C55: Auxiliar administrativo | D55: 0.25 | E55: mês | G55: 4024.84779 | J55: 1006.211948
D56: Custo horário total de mão de obra | J56: =SUM(J51:J55) -> 24508.32905
D57: Custo horário total de execução | J57: =J49+J56 -> 24508.32905
D58: Custo unitário de execução | J58: =J57/I43 -> 196066.6324
H59: Custo do FIC | J59: -
H60: Custo do FIT | J60: -
B61: C - MATERIAL | D61: Quantidade | E61: Unidade | G61: Preço Unitário | H61: Custo Unitário
B62: - | C62: 0 | E62: 0 | G62: 0 | J62: =D62*G62 -> 0
B63: - | C63: 0 | E63: 0 | G63: 0 | J63: 0
D64: Custo unitário total de material | J64: =SUM(J62:J63) -> 0
B65: D - ATIVIDADES AUXILIARES | D65: Quantidade | E65: Unidade | G65: Custo Unitário | H65: Custo Unitário
B66: 14250 | C66: Energia Elétrica | D66: 480 | E66: kwh | G66: 0.95 | J66: =D66*G66 -> 456
B67: 44480 | C67: Tarifa A - Água e Esgoto | D67: 32 | E67: m³ | G67: 17.97 | J67: =D67*G67 -> 575.04
B68: 5212560 | C68: Placa de advertência para sinalização de obras montada em suporte metálico móvel, lado 1,00 m - utilização de 600 ciclos - fornecimento, 01 implantação e 01 retirada diária | D68: 704 | E68: un.dia | G68: 3.89 | J68: =D68*G68 -> 2738.56
B69: Cotação | C69: Telefone | D69: 8 | E69: mês | G69: 59.9 | J69: =D69*G69 -> 479.2
D70: Custo total de atividades auxiliares | J70: =SUM(J66:J69) -> 4248.8
H71: Subtotal | J71: =J58+J64+J70 -> 200315.4324
B72: E - TEMPO FIXO | D72: Código | E72: Quantidade | F72: Unidade | H72: Custo Unitário | I72: Custo Unitário
B73: - | C73: 0 | D73: - | F73: 0 | H73: 0 | J73: =ROUNDDOWN(E73*H73,4) -> 0
B74: - | C74: 0 | D74: - | F74: 0 | H74: 0 | J74: =ROUNDDOWN(E74*H74,4) -> 0
D75: Custo unitário total de tempo fixo | J75: =SUM(J73:J74) -> 0
B76: F - MOMENTO DE TRANSPORTE | D76: Quantidade | E76: Unidade | F76: DMT | J76: Custo Unitário
F77: LN | G77: RP | H77: P
B78: - | C78: 0 | E78: tkm
B79: - | C79: 0 | E79: tkm
D80: Custo unitário total de transporte
F81: Custo unitário direto total | J81: =TRUNC(J71+J75,2) -> 200315.43
B82: Obs.
A84: =A40+1 -> 3 | B84: 1ª/GRD | K84: =J120 -> 18289.8
B85: OBRA: | C85: PAVIMENTAÇÃO EM BLOQUETE SEXTAVADOS - RUAS DIVERSAS - NOVORIZONTE / MG
B86: Custo Unitário de Referência | E86: Minas Gerais
E87: Janeiro/2025 | H87: Produção da equipe | I87: 1 | J87: =VLOOKUP(A84,ORÇAMENTO!$A$10:$L$57,7,1) -> GL
B88: CPU.3 | C88: CANTEIRO DE OBRAS | I88: Valores em reais (R$)
B89: A - EQUIPAMENTOS | D89: Quantidade | E89: Utilização | G89: Custo Horário | J89: Custo
E90: Operativa | F90: Improdutiva | G90: Produtivo | H90: Improdutivo | J90: Horário Total
B91: - | C91: 0 | G91: 0 | H91: 0 | J91: =D91*(E91*G91+F91*H91) -> 0
B92: - | C92: 0 | G92: 0 | H92: 0 | J92: =D92*(E92*G92+F92*H92) -> 0
H93: Custo horário total de equipamentos | J93: =SUM(J91:J92) -> 0
B94: B - MÃO DE OBRA | D94: Quantidade | E94: Unidade | G94: Custo Horário | H94: Custo Horário Total
B95: P9824 | C95: Servente | D95: 8 | E95: h | G95: 21.3355 | J95: =D95*G95 -> 170.684
B96: P9808 | C96: Carpinteiro | D96: 8 | E96: h | G96: 26.4529 | J96: 211.6232
D97: Custo horário total de mão de obra | J97: =SUM(J95:J96) -> 382.3072
D98: Custo horário total de execução | J98: =J93+J97 -> 382.3072
D99: Custo unitário de execução | J99: =J98/I87 -> 382.3072
H100: Custo do FIC | J100: -
H101: Custo do FIT | J101: -
B102: C - MATERIAL | D102: Quantidade | E102: Unidade | G102: Preço Unitário | H102: Custo Unitário
B103: M0053 | C103: Tela plástica em polipropileno na cor laranja para tapume - L = 1,2 m | D103: 100 | E103: m | G103: 1.775 | J103: =D103*G103 -> 177.5
B104: - | C104: 0 | D104: 0 | E104: 0 | G104: 0 | J104: 0
D105: Custo unitário total de material | J105: =SUM(J103:J104) -> 177.5
B106: D - ATIVIDADES AUXILIARES | D106: Quantidade | E106: Unidade | G106: Custo Unitário | H106: Custo Unitário
B107: 10775 | C107: Locação de container 2,30 X 6,00 m, alt. 2,50 m, com 1 sanitário, para escritório, completo, sem divisórias internas | D107: 8 | E107: mês | G107: 985 | J107: =D107*G107 -> 7880
B108: 10779 | C108: Locação de container 2,30 X 4,30 m, alt. 2,50 M, p/ sanitário, c/ 5 bacias, 1 lavatório e 4 mictórios | D108: 8 | E108: mês | G108: 1231.25 | J108: =D108*G108 -> 9850
D109: Custo total de atividades auxiliares | J109: =SUM(J107:J108) -> 17730
H110: Subtotal | J110: =J99+J105+J109 -> 18289.8072
B111: E - TEMPO FIXO | D111: Código | E111: Quantidade | F111: Unidade | H111: Custo Unitário | I111: Custo Unitário
B112: - | C112: 0 | D112: - | F112: 0 | H112: 0 | J112: =ROUNDDOWN(E112*H112,4) -> 0
B113: - | C113: 0 | D113: - | F113: 0 | H113: 0 | J113: =ROUNDDOWN(E113*H113,4) -> 0
D114: Custo unitário total de tempo fixo | J114: =SUM(J112:J113) -> 0
B115: F - MOMENTO DE TRANSPORTE | D115: Quantidade | E115: Unidade | F115: DMT | J115: Custo Unitário
F116: LN | G116: RP | H116: P
B117: - | C117: 0 | E117: tkm
B118: - | C118: 0 | E118: tkm
D119: Custo unitário total de transporte
F120: Custo unitário direto total | J120: =TRUNC(J110+J114,2) -> 18289.8
B121: Obs.
A123: =A84+1 -> 4 | B123: 1ª/GRD | K123: =J161 -> 351.42
B124: OBRA: | C124: PAVIMENTAÇÃO EM BLOQUETE SEXTAVADOS - RUAS DIVERSAS - NOVORIZONTE / MG
B125: Custo Unitário de Referência | E125: Minas Gerais
E126: Janeiro/2025 | H126: Produção da equipe | I126: 1 | J126: =VLOOKUP(A123,ORÇAMENTO!$A$10:$L$57,7,1) -> M2
B127: 103689 | C127: PLACA DE OBRA EM CHAPA DE AÇO GALVANIZADO | I127: Valores em reais (R$)
B128: A - EQUIPAMENTOS | D128: Quantidade | E128: Utilização | G128: Custo Horário | J128: Custo
E129: Operativa | F129: Improdutiva | G129: Produtivo | H129: Improdutivo | J129: Horário Total
B130: - | C130: 0 | G130: 0 | H130: 0 | J130: =D130*(E130*G130+F130*H130) -> 0
B131: - | C131: 0 | G131: 0 | H131: 0 | J131: =D131*(E131*G131+F131*H131) -> 0
H132: Custo horário total de equipamentos | J132: =SUM(J130:J131) -> 0
B133: B - MÃO DE OBRA | D133: Quantidade | E133: Unidade | G133: Custo Horário | H133: Custo Horário Total
B134: P9824 | C134: Servente | D134: 1.1186 | E134: h | G134: 21.3355 | J134: =D134*G134 -> 23.8658903
B135: P9808 | C135: Carpinteiro | D135: 0.3729 | E135: h | G135: 26.4529 | J135: 9.86428641
D136: Custo horário total de mão de obra | J136: =SUM(J134:J135) -> 33.73017671
D137: Custo horário total de execução | J137: =J132+J136 -> 33.73017671
D138: Custo unitário de execução | J138: =J137/I126 -> 33.73017671
H139: Custo do FIC | J139: -
H140: Custo do FIT | J140: -
B141: C - MATERIAL | D141: Quantidade | E141: Unidade | G141: Preço Unitário | H141: Custo Unitário
B142: M1358 | C142: Sarrafo em madeira de terceira - E = 2,5 cm e L = 5 cm | D142: 6.4166 | E142: m | G142: 1.9666 | J142: =D142*G142 -> 12.61888556
B143: M1205 | C143: Prego de ferro | D143: 0.0245 | E143: kg | G143: 16.5445 | J143: 0.40534025
B144: M0998 | C144: Madeira estrutural de eucalipto | D144: 0.022608 | E144: m³ | G144: 2418.0391 | J144: 54.66702797
B145: 4813 | C145: Placa de obra (para construção civil) em chapa galvanizada *N. 22*, adesivada, de *2,4 X 1,2* m (sem postes para fixação) | D145: 1 | E145: m² | G145: 250 | J145: =D145*G145 -> 250
D146: Custo unitário total de material | J146: =SUM(J142:J145) -> 317.6912538
B147: D - ATIVIDADES AUXILIARES | D147: Quantidade | E147: Unidade | G147: Custo Unitário | H147: Custo Unitário
B148: - | C148: 0 | D148: 0 | E148: 0 | G148: 0 | J148: =D148*G148 -> 0
B149: - | C149: 0 | D149: 0 | E149: 0 | G149: 0 | J149: 0
D150: Custo total de atividades auxiliares | J150: =SUM(J148:J149) -> 0
H151: Subtotal | J151: =J138+J146+J150 -> 351.4214305
B152: E - TEMPO FIXO | D152: Código | E152: Quantidade | F152: Unidade | H152: Custo Unitário | I152: Custo Unitário
B153: - | C153: 0 | D153: - | F153: 0 | H153: 0 | J153: =ROUNDDOWN(E153*H153,4) -> 0
B154: - | C154: 0 | D154: - | F154: 0 | H154: 0 | J154: =ROUNDDOWN(E154*H154,4) -> 0
D155: Custo unitário total de tempo fixo | J155: =SUM(J153:J154) -> 0
B156: F - MOMENTO DE TRANSPORTE | D156: Quantidade | E156: Unidade | F156: DMT | J156: Custo Unitário
F157: LN | G157: RP | H157: P
B158: - | C158: 0 | E158: tkm
B159: - | C159: 0 | E159: tkm
D160: Custo unitário total de transporte
F161: Custo unitário direto total | J161: =TRUNC(J151+J155,2) -> 351.42
B162: Obs.
A164: 6 | B164: 1ª/GRD | K164: =J202 -> 0.46
B165: OBRA: | C165: PAVIMENTAÇÃO EM BLOQUETE SEXTAVADOS - RUAS DIVERSAS - NOVORIZONTE / MG
B166: Custo Unitário de Referência | E166: Minas Gerais
E167: Janeiro/2025 | H167: Produção da equipe | I167: 1 | J167: =VLOOKUP(A164,ORÇAMENTO!$A$10:$L$57,7,1) -> M2
B168: 78472 | C168: SERVIÇOS TOPOGRÁFICOS PARA PAVIMENTAÇÃO, INCLUSIVE LEVANTAMENTO PLANIALTIMÉTRICO CADASTRAL, GERAÇÃO DE NOTAS DE SERVIÇO, SEÇÕES TRANSVERSAIS E GREIDE, ESTAQUEAMENTO E ACOMPANHAMENTO EXECUTIVO | I168: Valores em reais (R$)
B169: A - EQUIPAMENTOS | D169: Quantidade | E169: Utilização | G169: Custo Horário | J169: Custo
E170: Operativa | F170: Improdutiva | G170: Produtivo | H170: Improdutivo | J170: Horário Total
B171: 92145 | C171: Caminhonete cabine simples com motor 1.6 flex, câmbio manual, potência 101/104 cv, 2 portas | D171: 0.0005 | E171: 1 | F171: 0 | G171: 76.5 | H171: 0 | J171: =D171*(E171*G171+F171*H171) -> 0.03825
B172: - | C172: 0 | D172: 0 | E172: 1 | F172: 0 | G172: 0 | H172: 0 | J172: =D172*(E172*G172+F172*H172) -> 0
H173: Custo horário total de equipamentos | J173: =SUM(J171:J172) -> 0.03825
B174: B - MÃO DE OBRA | D174: Quantidade | E174: Unidade | G174: Custo Horário | H174: Custo Horário Total
B175: P9949 | C175: Topógrafo | D175: 1.25e-05 | E175: mês | G175: 6816.9716 | J175: =D175*G175 -> 0.085212145
B176: P9950 | C176: Auxiliar de topografia | D176: 1.25e-05 | E176: mês | G176: 6157.8463 | J176: 0.07697307875
B177: P9824 | C177: Servente | D177: 0.0075 | E177: h | G177: 21.3355 | J177: 0.16001625
B178: P9848 | C178: Desenhista | D178: 1e-05 | E178: mês | G178: 10307.7486 | J178: 0.103077486
D179: Custo horário total de mão de obra | J179: =SUM(J175:J178) -> 0.4252789597
D180: Custo horário total de execução | J180: =J173+J179 -> 0.4635289597
D181: Custo unitário de execução | J181: =J180/I167 -> 0.4635289597
H182: Custo do FIC | J182: -
H183: Custo do FIT | J183: -
B184: C - MATERIAL | D184: Quantidade | E184: Unidade | G184: Preço Unitário | H184: Custo Unitário
B185: - | C185: 0 | D185: 0 | E185: 0 | G185: 0 | J185: =D185*G185 -> 0
B186: - | C186: 0 | D186: 0 | E186: 0 | G186: 0 | J186: 0
D187: Custo unitário total de material | J187: =SUM(J185:J186) -> 0
B188: D - ATIVIDADES AUXILIARES | D188: Quantidade | E188: Unidade | G188: Custo Unitário | H188: Custo Unitário
B189: - | C189: 0 | D189: 0 | E189: 0 | G189: 0 | J189: =D189*G189 -> 0
B190: - | C190: 0 | D190: 0 | E190: 0 | G190: 0 | J190: 0
D191: Custo total de atividades auxiliares | J191: =SUM(J189:J190) -> 0
H192: Subtotal | J192: =J181+J187+J191 -> 0.4635289597
B193: E - TEMPO FIXO | D193: Código | E193: Quantidade | F193: Unidade | H193: Custo Unitário | I193: Custo Unitário
B194: - | C194: 0 | D194: - | F194: 0 | H194: 0 | J194: =ROUNDDOWN(E194*H194,4) -> 0
B195: - | C195: 0 | D195: - | F195: 0 | H195: 0 | J195: =ROUNDDOWN(E195*H195,4) -> 0
D196: Custo unitário total de tempo fixo | J196: =SUM(J194:J195) -> 0
B197: F - MOMENTO DE TRANSPORTE | D197: Quantidade | E197: Unidade | F197: DMT | J197: Custo Unitário
F198: LN | G198: RP | H198: P
B199: - | C199: 0 | E199: tkm
B200: - | C200: 0 | E200: tkm
D201: Custo unitário total de transporte
F202: Custo unitário direto total | J202: =TRUNC(J192+J196,2) -> 0.46
B203: Obs.
A205: =A164+1 -> 7 | B205: 1ª/GRD | K205: =J241 -> 6.73
... 425 more rows

Sheet BDI SERV
B1: DETALHAMENTO DO BDI - SERVIÇOS
B4: Item | C4: Descrição dos Serviços | D4: % - PV | E4: % - CD
B6: 1 | C6: ADMINISTRAÇÃO CENTRAL | E6: =SUM(E7:E9) -> 4.01
B7: 1.1 | C7: ESCRITÓRIO CENTRAL | E7: 4.01
B8: 1.2 | C8: VIAGENS
B9: 1.3 | C9: OUTROS
B11: 2 | C11: IMPOSTOS E TAXAS | D11: =SUM(D12:D15) -> 7.65 | E11: =SUM(E12:E15) -> 0
B12: 2.1 | C12: ISS - Proposta | D12: =D34*100 -> 4
B13: 2.2 | C13: PIS | D13: 0.65
B14: 2.3 | C14: Cofins | D14: 3
B15: 2.4 | C15: Contribuição Previdenciaria (CPRB)
B17: 3 | C17: TAXA DE RISCO | E17: =SUM(E18:E20) -> 0.96
B18: 3.1 | C18: SEGURO | E18: 0.2
B19: 3.2 | C19: RISCO | E19: 0.56
B20: 3.3 | C20: GARANTIA | E20: 0.2
B22: 4 | C22: DESPESAS FINANCEIRAS | E22: 1.11
B24: 5 | C24: LUCRO | E24: 8
B26: BDI APRESENTADO: | E26: =IF($D$41=$C$43,$D$43,IF($D$41=$C$44,$D$44,IF($D$41=$C$44,$D$44,IF($D$41=$C$45,$D$45,0)))) -> 24.12
C28: Legislação Municipal: | D28: Declaração da Prefeitura
C29: Município: | D29: Novorizonte
C30: Alíquota ISSQN: | D30: 0.04 | E30: Município
C31: Base de Cálculo: | D31: 1
C32: Valor Serviço: | D32: 2417917.93
C33: Dedução - Material (estimado): | D33: 0 | E33: =D33/D32 -> 0
C34: ISSQN BDI: | D34: =IF(D32="",0,ROUND(IF(D31=D49,((1-(D33/D32))*D30),D30*D31),4)) -> 0.04 | E34: (*)
A36: Acórdão nº 2.622/2013 - TCU Plenário
A37: BDI = ARRED((((((1+(AC+TR)/100)*(1+DF/100)*(1+L/100))/(1-IMP/100))-1)*100);2)
B39: (*) É obrigação da licitante a verificação da Legislação Tributária vigente no município, bem como o cálculo dos valores totais de serviços e materiais estimados, para apresentação de sua proposta.
C41: Forma de Cálculo do BDI: | D41: BDI - Acórdão nº 2.622/2013 - TCU
C43: BDI - Digitado | D43: =ROUND(E6+E11+E17+E22+E24,2) -> 14.08
C44: BDI - Calculado | D44: =ROUND((((1+(E6/100+E22/100+E17/100))/(1-(D11/100+E24/100)))-1)*100,2) -> 25.76
C45: BDI - Acórdão nº 2.622/2013 - TCU | D45: =ROUND((((((1+(E6+E17)/100)*(1+E22/100)*(1+E24/100))/(1-D11/100))-1)*100),2) -> 24.12
D49: Dedução - Material | E49: Município
D50: 0.1 | E50: Simples Nacional
D51: 0.2 | E51: Municípios Indefinidos
D52: 0.3
D53: 0.4
D54: 0.5
D55: 0.6
D56: 0.7
D57: 0.8
D58: 0.9
D59: 1
D60: =E31 -> 0

Sheet CRONOGRAMA
B1: CRONOGRAMA FÍSICO-FINANCEIRO
B2: OBRA: | C2: =ORÇAMENTO!C5 -> PAVIMENTAÇÃO EM BLOQUETE SEXTAVADOS - RUAS DIVERSAS - NOVORIZONTE / MG | F2: VALOR: | G2: =ORÇAMENTO!L30 -> 2999827.73
F3: PRAZO: | G3: 240 DIAS
B5: ITEM | C5: ETAPAS/DESCRIÇAO | D5: FISICO/ FINANCEIRO | E5: TOTAL ETAPAS | F5: MÊS 1 | G5: MÊS 2 | H5: MÊS 3 | I5: MÊS 4 | J5: MÊS 5 | K5: MÊS 6 | L5: MÊS 7 | M5: MÊS 8 | N5: TOTAL
A6: A | B6: =VLOOKUP(A6,ORÇAMENTO!$A$10:$L$30,2) -> 1 | C6: =VLOOKUP(A6,ORÇAMENTO!$A$10:$L$30,5) -> SERVIÇOS PRELIMINARES | D6: FISICO | E6: =ROUND(E7/$G$2,4) -> 0.1015 | F6: 0.25 | G6: 0.1 | H6: 0.1 | I6: 0.1 | J6: 0.1 | K6: 0.1 | L6: 0.1 | M6: 0.15 | N6: =SUM(F6:M6) -> 1
D7: FINANCEIRO | E7: =ORÇAMENTO!L10 -> 304351.83 | F7: =ROUND($E$7*F6,2) -> 76087.96 | G7: =ROUND($E$7*G6,2) -> 30435.18 | H7: =ROUND($E$7*H6,2) -> 30435.18 | I7: =ROUND($E$7*I6,2) -> 30435.18 | J7: =ROUND($E$7*J6,2) -> 30435.18 | K7: 30435.18 | L7: 30435.18 | M7: 45652.77 | N7: 304351.81
A8: B | B8: =VLOOKUP(A8,ORÇAMENTO!$A$10:$L$30,2) -> 2 | C8: =VLOOKUP(A8,ORÇAMENTO!$A$10:$L$30,5) -> TERRAPLANAGEM E PAVIMENTAÇÃO | D8: FISICO | E8: =ROUND(E9/$G$2,4) -> 0.6382 | F8: 0.1 | G8: 0.15 | H8: 0.15 | I8: 0.15 | J8: 0.15 | K8: 0.15 | L8: 0.15 | M8: 0 | N8: 1
D9: FINANCEIRO | E9: =ORÇAMENTO!L16 -> 1914569.5 | F9: =ROUND($E$9*F8,2) -> 191456.95 | G9: =ROUND($E$9*G8,2) -> 287185.43 | H9: =ROUND($E$9*H8,2) -> 287185.43 | I9: =ROUND($E$9*I8,2) -> 287185.43 | J9: =ROUND($E$9*J8,2) -> 287185.43 | K9: 287185.43 | L9: 287185.43 | M9: 0 | N9: 1914569.53
A10: C | B10: =VLOOKUP(A10,ORÇAMENTO!$A$10:$L$30,2) -> 3 | C10: =VLOOKUP(A10,ORÇAMENTO!$A$10:$L$30,5) -> TRANSPORTE DE MATERIAIS | D10: FISICO | E10: =ROUND(E11/$G$2,4) -> 0.0752 | F10: 0.1 | G10: 0.15 | H10: 0.15 | I10: 0.15 | J10: 0.15 | K10: 0.15 | L10: 0.15 | M10: 0 | N10: 1
D11: FINANCEIRO | E11: =ORÇAMENTO!L20 -> 225710 | F11: =ROUND($E$11*F10,2) -> 22571 | G11: =ROUND($E$11*G10,2) -> 33856.5 | H11: =ROUND($E$11*H10,2) -> 33856.5 | I11: =ROUND($E$11*I10,2) -> 33856.5 | J11: =ROUND($E$11*J10,2) -> 33856.5 | K11: 33856.5 | L11: 33856.5 | M11: 0 | N11: 225710
A12: D | B12: =VLOOKUP(A12,ORÇAMENTO!$A$10:$L$30,2) -> 4 | C12: =VLOOKUP(A12,ORÇAMENTO!$A$10:$L$30,5) -> DRENAGEM E OBRAS COMPLEMENTARES | D12: FISICO | E12: =ROUND(E13/$G$2,4) -> 0.1851 | F12: 0.1 | G12: 0.15 | H12: 0.15 | I12: 0.15 | J12: 0.15 | K12: 0.15 | L12: 0.1 | M12: 0.05 | N12: 1
D13: FINANCEIRO | E13: =ORÇAMENTO!L25 -> 555196.4 | F13: =ROUND($E$13*F12,2) -> 55519.64 | G13: =ROUND($E$13*G12,2) -> 83279.46 | H13: =ROUND($E$13*H12,2) -> 83279.46 | I13: =ROUND($E$13*I12,2) -> 83279.46 | J13: =ROUND($E$13*J12,2) -> 83279.46 | K13: 83279.46 | L13: 55519.64 | M13: 27759.82 | N13: 555196.4
B14: TOTAL | D14: FISICO | E14: =SUM(F14:H14) -> 0.405072824 | F14: =F15/E15 -> 0.1152184662 | G14: =G15/$E$15 -> 0.1449271789 | H14: =H15/$E$15 -> 0.1449271789 | I14: =I15/$E$15 -> 0.1449271789 | J14: 0.1449271789 | K14: 0.1449271789 | L14: 0.1356733742 | M14: 0.02447226861 | N14: 1.000000003
D15: FINANCEIRO | E15: =E11+E9+E7+E13 -> 2999827.73 | F15: =F11+F9+F7+F13 -> 345635.55 | G15: =G11+G9+G7+G13 -> 434756.57 | H15: =H11+H9+H7+H13 -> 434756.57 | I15: =I11+I9+I7+I13 -> 434756.57 | J15: =J11+J9+J7+J13 -> 434756.57 | K15: 434756.57 | L15: 406996.75 | M15: 73412.59 | N15: =ROUNDUP(SUM(F15:M15),2)-0.01 -> 2999827.73
B17: OBSERVAÇÕES:
